[Event "Masters Tournament (MTO)"]
[Site "Biel, Switzerland"]
[Date "2026.07.20"]
[Round "7.8"]
[White "Hasenohr, Benedict"]
[Black "Aronyak, Ghosh"]
[Result "0-1"]
[TimeControl "100+30+30sec/move"]
[WhiteTitle "-"]
[BlackTitle "-"]
[WhiteFideId "1303309"]
[BlackFideId "25072846"]
[WhiteElo "2247"]
[BlackElo "2549"]

1. d4 {[%emt 00:01:13]} e6 {[%clk 01:39:06]} {[%emt 00:00:46]} 2. c4 {[%clk
01:40:59]} {[%emt 00:00:26]} Bb4+ {[%clk 01:39:09]} {[%emt 00:00:27]} 3. Nc3
{[%clk 01:38:28]} {[%emt 00:03:01]} c5 {[%clk 01:38:53]} {[%emt 00:00:46]} 4.
a3 {[%clk 01:37:40]} {[%emt 00:01:18]} Ba5 {[%clk 01:35:42]} {[%emt 00:03:41]}
5. e3 {[%clk 01:32:51]} {[%emt 00:05:19]} Nf6 {[%clk 01:34:27]} {[%emt
00:01:45]} 6. Bd2 {[%clk 01:27:32]} {[%emt 00:05:49]} d6 {[%clk 01:28:33]}
{[%emt 00:06:24]} 7. b4 {[%clk 00:53:58]} {[%emt 00:34:05]} cxb4 {[%clk
01:21:14]} {[%emt 00:07:49]} 8. axb4 {[%clk 00:51:54]} {[%emt 00:02:34]} Bxb4
{[%clk 01:19:42]} {[%emt 00:02:02]} 9. Qa4+ {[%clk 00:52:17]} {[%emt 00:00:06]}
Nc6 {[%clk 01:20:04]} {[%emt 00:00:08]} 10. d5 {[%clk 00:51:47]} {[%emt
00:01:01]} exd5 {[%clk 01:18:58]} {[%emt 00:01:36]} 11. cxd5 {[%clk 00:52:08]}
{[%emt 00:00:09]} Bxc3 {[%clk 01:18:26]} {[%emt 00:01:01]} 12. Bxc3 {[%clk
00:52:33]} {[%emt 00:00:05]} Nxd5 {[%clk 01:18:50]} {[%emt 00:00:07]} 13. Bxg7
{[%clk 00:52:19]} {[%emt 00:00:44]} Rg8 {[%clk 01:18:56]} {[%emt 00:00:24]} 14.
Bb2 {[%clk 00:49:42]} {[%emt 00:03:07]} Qb6 {[%clk 01:15:27]} {[%emt 00:03:59]}
15. Bb5 {[%clk 00:32:51]} {[%emt 00:17:21]} Nc7 {[%clk 01:10:08]} {[%emt
00:05:49]} 16. Bxc6+ {[%clk 00:31:28]} {[%emt 00:01:53]} Qxc6 {[%clk 01:09:30]}
{[%emt 00:01:08]} 17. Ne2 {[%clk 00:29:01]} {[%emt 00:02:57]} Qxa4 {[%clk
01:02:25]} {[%emt 00:07:35]} 18. Rxa4 {[%clk 00:29:26]} {[%emt 00:00:05]} Rg4
{[%clk 01:02:13]} {[%emt 00:00:41]} 19. Nf4 {[%clk 00:27:24]} {[%emt 00:02:33]}
Ne6 {[%clk 01:00:00]} {[%emt 00:02:43]} 20. h3 {[%clk 00:27:06]} {[%emt
00:00:48]} Rg5 {[%clk 00:59:47]} {[%emt 00:00:43]} 21. O-O {[%clk 00:23:32]}
{[%emt 00:04:04]} Nxf4 {[%clk 00:47:33]} {[%emt 00:12:45]} 22. exf4 {[%clk
00:23:42]} {[%emt 00:00:19]} Rd5 {[%clk 00:46:56]} {[%emt 00:01:07]} 23. Re1+
{[%clk 00:17:26]} {[%emt 00:06:47]} Be6 {[%clk 00:46:12]} {[%emt 00:01:13]} 24.
g4 {[%clk 00:16:08]} {[%emt 00:01:48]} Kf8 {[%clk 00:45:58]} {[%emt 00:00:44]}
25. Ba3 {[%clk 00:13:58]} {[%emt 00:02:41]} Bd7 {[%clk 00:41:08]} {[%emt
00:05:19]} 26. Rae4 {[%clk 00:13:12]} {[%emt 00:01:16]} Re8 {[%clk 00:41:00]}
{[%emt 00:00:38]} 27. Re5 {[%clk 00:11:50]} {[%emt 00:01:52]} Rd4 {[%clk
00:36:19]} {[%emt 00:05:10]} 28. Kh2 {[%clk 00:11:55]} {[%emt 00:00:26]} b5
{[%clk 00:35:05]} {[%emt 00:01:44]} 29. Rb1 {[%clk 00:10:14]} {[%emt 00:02:11]}
f5 {[%clk 00:29:26]} {[%emt 00:06:09]} 30. Rbxb5 {[%clk 00:07:19]} {[%emt
00:03:25]} Bxb5 {[%clk 00:26:59]} {[%emt 00:02:57]} 31. Rxf5+ {[%clk 00:07:45]}
{[%emt 00:00:04]} Ke7 {[%clk 00:27:25]} {[%emt 00:00:04]} 32. Rxb5 {[%clk
00:08:07]} {[%emt 00:00:08]} Rxf4 {[%clk 00:27:46]} {[%emt 00:00:08]} 33. Rb7+
{[%clk 00:07:16]} {[%emt 00:01:21]} Ke6 {[%clk 00:28:10]} {[%emt 00:00:06]} 34.
Rxh7 {[%clk 00:06:58]} {[%emt 00:00:49]} Rxf2+ {[%clk 00:26:07]} {[%emt
00:02:32]} 35. Kg3 {[%clk 00:07:24]} {[%emt 00:00:04]} Rf7 {[%clk 00:25:18]}
{[%emt 00:01:19]} 36. Rh6+ {[%clk 00:07:13]} {[%emt 00:00:41]} Rf6 {[%clk
00:25:41]} {[%emt 00:00:07]} 37. Rh5 {[%clk 00:06:03]} {[%emt 00:01:40]} Rb8
{[%clk 00:25:32]} {[%emt 00:00:39]} 38. g5 {[%clk 00:05:09]} {[%emt 00:01:25]}
Rg6 {[%clk 00:23:33]} {[%emt 00:02:29]} 39. Kg4 {[%clk 00:05:16]} {[%emt
00:00:22]} Rb1 {[%clk 00:23:31]} {[%emt 00:00:32]} 40. h4 {[%clk 00:04:17]}
{[%emt 00:01:29]} Ra1 {[%clk 00:22:04]} {[%emt 00:01:57]} 41. Bb2 {[%clk
00:20:42]} {[%emt 00:14:05]} Ra4+ {[%clk 00:52:21]} {[%emt 00:00:13]} 42. Kg3
{[%clk 00:20:24]} {[%emt 00:00:48]} Rg8 {[%clk 00:51:06]} {[%emt 00:01:45]} 43.
Rh6+ {[%clk 00:19:31]} {[%emt 00:01:23]} Kd5 {[%clk 00:51:25]} {[%emt
00:00:12]} 44. Bc1 {[%clk 00:17:38]} {[%emt 00:02:22]} Rf8 {[%clk 00:50:45]}
{[%emt 00:01:09]} 45. g6 {[%clk 00:17:00]} {[%emt 00:01:09]} Ra1 {[%clk
00:46:21]} {[%emt 00:04:54]} 46. g7 {[%clk 00:16:09]} {[%emt 00:01:21]} Rg8
{[%clk 00:46:38]} {[%emt 00:00:13]} 47. Bb2 {[%clk 00:15:48]} {[%emt 00:00:52]}
Rg1+ {[%clk 00:46:58]} {[%emt 00:00:09]} 48. Kf4 {[%clk 00:15:10]} {[%emt
00:01:08]} R1xg7 {[%clk 00:46:21]} {[%emt 00:01:07]} 49. Bxg7 {[%clk 00:14:18]}
{[%emt 00:01:22]} Rxg7 {[%clk 00:46:50]} {[%emt 00:00:01]} 50. Rh5+ {[%clk
00:14:09]} {[%emt 00:00:39]} Kc4 {[%clk 00:45:21]} {[%emt 00:01:59]} 51. Ra5
{[%clk 00:14:04]} {[%emt 00:00:35]} d5 {[%clk 00:45:19]} {[%emt 00:00:33]} 52.
Ke5 {[%clk 00:13:33]} {[%emt 00:01:01]} Rh7 {[%clk 00:41:43]} {[%emt 00:04:05]}
53. Ra4+ {[%clk 00:11:45]} {[%emt 00:02:18]} Kc5 {[%clk 00:41:41]} {[%emt
00:00:32]} 54. Ra5+ {[%clk 00:11:38]} {[%emt 00:00:37]} Kb4 {[%clk 00:41:43]}
{[%emt 00:00:28]} 55. Ra6 {[%clk 00:11:09]} {[%emt 00:01:00]} Kb5 {[%clk
00:41:02]} {[%emt 00:01:10]} 56. Ra1 {[%clk 00:09:00]} {[%emt 00:02:39]} Rxh4
{[%clk 00:40:54]} {[%emt 00:00:38]} 57. Kxd5 {[%clk 00:09:25]} {[%emt
00:00:05]} a5 {[%clk 00:41:21]} {[%emt 00:00:03]} 58. Rc1 {[%clk 00:07:17]}
{[%emt 00:02:38]} Kb4 {[%clk 00:41:28]} {[%emt 00:00:23]} 59. Rc8 {[%clk
00:06:58]} {[%emt 00:00:48]} a4 {[%clk 00:41:33]} {[%emt 00:00:25]} 60. Rb8+
{[%clk 00:07:18]} {[%emt 00:00:10]} Kc3 {[%clk 00:41:59]} {[%emt 00:00:04]} 61.
Ra8 {[%clk 00:05:17]} {[%emt 00:02:32]} Kb3 {[%clk 00:41:00]} {[%emt 00:01:29]}
62. Rb8+ {[%clk 00:03:04]} {[%emt 00:02:43]} Rb4 {[%clk 00:39:32]} {[%emt
00:01:57]} 63. Rh8 {[%clk 00:03:30]} {[%emt 00:00:04]} a3 {[%clk 00:39:28]}
{[%emt 00:00:35]} 64. Rh3+ {[%clk 00:02:46]} {[%emt 00:01:14]} Ka4 {[%clk
00:39:50]} {[%emt 00:00:08]} 65. Rh2 {[%clk 00:02:37]} {[%emt 00:00:39]} Rb2
{[%clk 00:40:08]} {[%emt 00:00:12]} 66. Rh4+ {[%clk 00:03:01]} {[%emt
00:00:06]} Kb5 {[%clk 00:39:33]} {[%emt 00:01:05]} 67. Rh8 {[%clk 00:02:55]}
{[%emt 00:00:36]} Rd2 {[%clk 00:39:52]} {[%emt 00:00:11]} 68. Ke4 {[%clk
00:03:20]} {[%emt 00:00:05]} a2 {[%clk 00:40:18]} {[%emt 00:00:04]} 69. Ra8
{[%clk 00:03:34]} {[%emt 00:00:15]} Kc4 {[%clk 00:40:34]} {[%emt 00:00:15]} 70.
Ke3 {[%clk 00:03:34]} {[%emt 00:00:30]} Rh2 {[%clk 00:40:54]} {[%emt 00:00:09]}
71. Ra7 {[%clk 00:02:25]} {[%emt 00:01:40]} Kc3 {[%clk 00:41:09]} {[%emt
00:00:14]} 72. Ra8 {[%clk 00:01:16]} {[%emt 00:01:39]} Rh3 {[%clk 00:40:46]}
{[%emt 00:00:53]} 0-1

[Event "Masters Tournament (MTO)"]
[Site "Biel, Switzerland"]
[Date "2026.07.20"]
[Round "7.9"]
[White "Cervelli, Eduard"]
[Black "Kozak, Adam"]
[Result "0-1"]
[TimeControl "100+30+30sec/move"]
[WhiteTitle "-"]
[BlackTitle "-"]
[WhiteFideId "1351800"]
[BlackFideId "753246"]
[WhiteElo "2197"]
[BlackElo "2531"]

1. e4 {[%clk 01:40:54]} {[%emt 00:00:04]} e5 {[%clk 01:33:46]} {[%emt
00:07:06]} 2. Nf3 {[%clk 01:41:22]} {[%emt 00:00:10]} Nc6 {[%clk 01:34:06]}
{[%emt 00:00:08]} 3. Bc4 {[%clk 01:41:44]} {[%emt 00:00:10]} d6 {[%clk
01:34:30]} {[%emt 00:00:07]} 4. O-O {[%clk 01:39:12]} {[%emt 00:03:01]} Bg4
{[%clk 01:34:49]} {[%emt 00:00:12]} 5. c3 {[%clk 01:34:21]} {[%emt 00:05:20]}
Qd7 {[%clk 01:33:25]} {[%emt 00:01:54]} 6. a4 {[%clk 01:32:42]} {[%emt
00:02:09]} a6 {[%clk 01:27:56]} {[%emt 00:06:00]} 7. d3 {[%clk 01:29:11]}
{[%emt 00:04:00]} Nf6 {[%clk 01:25:42]} {[%emt 00:02:43]} 8. Re1 {[%clk
01:26:21]} {[%emt 00:03:20]} Be7 {[%clk 01:25:05]} {[%emt 00:01:08]} 9. Nbd2
{[%clk 01:25:59]} {[%emt 00:00:50]} O-O {[%clk 01:24:08]} {[%emt 00:01:27]} 10.
Nf1 {[%clk 01:20:44]} {[%emt 00:05:45]} Be6 {[%clk 01:24:20]} {[%emt 00:00:19]}
11. Bxe6 {[%clk 01:19:42]} {[%emt 00:01:32]} fxe6 {[%clk 01:23:27]} {[%emt
00:01:23]} 12. b4 {[%clk 01:18:24]} {[%emt 00:01:47]} Nh5 {[%clk 01:19:37]}
{[%emt 00:04:21]} 13. g3 {[%clk 01:15:48]} {[%emt 00:03:06]} h6 {[%clk
01:17:13]} {[%emt 00:02:54]} 14. h3 {[%clk 01:08:08]} {[%emt 00:08:09]} Nf6
{[%clk 01:14:56]} {[%emt 00:02:48]} 15. N1h2 {[%clk 01:07:42]} {[%emt
00:00:56]} Nd8 {[%clk 01:04:23]} {[%emt 00:11:04]} 16. Kg2 {[%clk 00:58:20]}
{[%emt 00:09:52]} Nf7 {[%emt 00:09:02]} 17. Bd2 {[%clk 00:50:09]} Nh7 {[%clk
00:57:00]} {[%emt 00:08:03]} 18. h4 {[%clk 00:45:28]} {[%emt 00:05:10]} Nf6
{[%clk 00:53:58]} {[%emt 00:03:33]} 19. a5 {[%clk 00:44:23]} {[%emt 00:01:35]}
d5 {[%clk 00:48:32]} {[%emt 00:05:57]} 20. Qc2 {[%clk 00:37:12]} {[%emt
00:07:40]} Rad8 {[%clk 00:41:22]} {[%emt 00:07:40]} 21. Rad1 {[%clk 00:35:49]}
{[%emt 00:01:53]} c5 {[%clk 00:41:34]} {[%emt 00:00:19]} 22. exd5 {[%clk
00:26:42]} {[%emt 00:09:36]} Qxd5 {[%emt 00:01:24]} 23. Re3 {[%clk 00:26:57]}
Qc6 {[%clk 00:37:23]} {[%emt 00:04:02]} 24. bxc5 {[%clk 00:17:03]} {[%emt
00:10:24]} Bxc5 {[%clk 00:37:45]} {[%emt 00:00:08]} 25. Ree1 {[%clk 00:17:15]}
{[%emt 00:00:18]} Rd7 {[%clk 00:28:57]} {[%emt 00:09:19]} 26. c4 {[%clk
00:02:13]} {[%emt 00:15:31]} Rfd8 {[%clk 00:28:23]} {[%emt 00:01:04]} 27. Bc3
{[%clk 00:01:53]} {[%emt 00:00:50]} e4 {[%clk 00:28:28]} {[%emt 00:00:26]} 28.
dxe4 {[%clk 00:02:16]} {[%emt 00:00:06]} Rxd1 {[%clk 00:28:53]} {[%emt
00:00:05]} 29. Rxd1 {[%clk 00:02:16]} {[%emt 00:00:30]} Rxd1 {[%clk 00:28:56]}
{[%emt 00:00:27]} 30. Qxd1 {[%clk 00:02:40]} {[%emt 00:00:06]} Nxe4 {[%clk
00:29:21]} {[%emt 00:00:05]} 31. Bd4 {[%clk 00:01:46]} {[%emt 00:01:23]} Ned6
{[%clk 00:29:37]} {[%emt 00:00:15]} 32. Ba1 {[%clk 00:29:57]} {[%emt 00:01:47]}
0-1

[Event "Masters Tournament (MTO)"]
[Site "Biel, Switzerland"]
[Date "2026.07.20"]
[Round "7.10"]
[White "Ling, Chenxuan"]
[Black "Elmi, Saad Abobaker"]
[Result "1/2-1/2"]
[TimeControl "100+30+30sec/move"]
[WhiteTitle "-"]
[BlackTitle "-"]
[WhiteFideId "30983118"]
[BlackFideId "1553259"]
[WhiteElo "2166"]
[BlackElo "2399"]

1. d4 {[%clk 01:39:00]} {[%emt 00:00:02]} d5 {[%clk 01:40:28]} {[%emt
00:00:32]} 2. c4 {[%clk 01:39:03]} {[%emt 00:00:28]} dxc4 {[%clk 01:40:45]}
{[%emt 00:00:12]} 3. Nf3 {[%clk 01:39:27]} {[%emt 00:00:06]} Nf6 {[%clk
01:41:01]} {[%emt 00:00:15]} 4. e3 {[%clk 01:39:51]} {[%emt 00:00:06]} Bg4
{[%clk 01:41:17]} {[%emt 00:00:14]} 5. Bxc4 {[%clk 01:40:04]} {[%emt 00:00:17]}
e6 {[%clk 01:41:38]} {[%emt 00:00:08]} 6. Nc3 {[%clk 01:39:41]} {[%emt
00:00:54]} c5 {[%clk 01:41:39]} {[%emt 00:00:29]} 7. Qa4+ {[%clk 01:27:07]}
{[%emt 00:13:04]} Nbd7 {[%clk 01:41:38]} {[%emt 00:00:30]} 8. Ne5 {[%clk
01:27:08]} {[%emt 00:00:30]} cxd4 {[%clk 01:39:52]} {[%emt 00:02:16]} 9. exd4
{[%clk 01:26:11]} {[%emt 00:01:27]} a6 {[%clk 01:39:40]} {[%emt 00:00:42]} 10.
Nxg4 {[%clk 01:25:28]} {[%emt 00:01:12]} Nxg4 {[%clk 01:40:01]} {[%emt
00:00:09]} 11. Qd1 {[%clk 01:25:24]} {[%emt 00:00:34]} Ngf6 {[%clk 01:39:35]}
{[%emt 00:00:56]} 12. O-O {[%clk 01:24:47]} {[%emt 00:01:07]} Bd6 {[%clk
01:39:06]} {[%emt 00:01:00]} 13. Be2 {[%clk 01:21:41]} {[%emt 00:03:37]} O-O
{[%clk 01:36:53]} {[%emt 00:02:42]} 14. Bg5 {[%clk 01:16:43]} {[%emt 00:05:27]}
h6 {[%clk 01:37:00]} {[%emt 00:00:23]} 15. Bxf6 {[%clk 01:16:02]} {[%emt
00:01:12]} Nxf6 {[%clk 01:36:37]} {[%emt 00:00:53]} 16. Bf3 {[%clk 01:14:30]}
{[%emt 00:02:02]} Rb8 {[%clk 01:36:04]} {[%emt 00:01:03]} 17. g3 {[%clk
01:13:54]} {[%emt 00:01:06]} Qb6 {[%clk 01:30:52]} {[%emt 00:05:41]} 18. Qd2
{[%clk 01:06:36]} {[%emt 00:07:50]} Rfd8 {[%clk 01:29:55]} {[%emt 00:01:25]} 19.
Rfd1 {[%clk 01:04:47]} {[%emt 00:02:20]} Bb4 {[%clk 01:24:55]} {[%emt
00:05:30]} 20. a3 {[%clk 00:55:46]} {[%emt 00:09:31]} Bxc3 {[%clk 01:25:04]}
{[%emt 00:00:20]} 21. bxc3 {[%clk 00:56:06]} {[%emt 00:00:11]} Qc7 {[%clk
01:25:15]} {[%emt 00:00:17]} 22. Rdc1 {[%clk 00:52:45]} {[%emt 00:03:52]} b5
{[%clk 01:22:13]} {[%emt 00:03:32]} 23. a4 {[%clk 00:51:04]} {[%emt 00:02:12]}
e5 {[%clk 01:18:31]} {[%emt 00:04:11]} 24. axb5 {[%clk 00:49:24]} {[%emt
00:02:12]} axb5 {[%clk 01:18:48]} {[%emt 00:00:13]} 25. Rab1 {[%clk 00:47:40]}
{[%emt 00:02:14]} exd4 {[%clk 01:15:03]} {[%emt 00:04:14]} 26. cxd4 {[%clk
00:47:58]} {[%emt 00:00:12]} Qb6 {[%clk 01:13:25]} {[%emt 00:02:07]} 27. Rb4
{[%clk 00:45:46]} {[%emt 00:02:42]} Nd5 {[%clk 01:12:36]} {[%emt 00:01:19]} 28.
Bxd5 {[%clk 00:43:27]} {[%emt 00:02:50]} Rxd5 {[%clk 01:12:58]} {[%emt
00:00:07]} 29. Rcb1 {[%clk 00:43:41]} {[%emt 00:00:17]} Rbd8 {[%clk 01:12:53]}
{[%emt 00:00:34]} 30. Qe2 {[%clk 00:43:47]} {[%emt 00:00:25]} Rxd4 {[%clk
01:12:30]} {[%emt 00:00:51]} 31. Rxd4 {[%clk 00:44:05]} {[%emt 00:00:14]} Qxd4
{[%clk 01:12:53]} {[%emt 00:00:07]} 32. Qxb5 {[%clk 00:44:25]} {[%emt
00:00:10]} g6 {[%emt 00:00:31]} 33. Re1 {[%clk 00:44:47]} h5 {[%clk 01:13:09]}
{[%emt 00:00:20]} 34. Re8+ {[%clk 00:45:11]} {[%emt 00:00:07]} Rxe8 {[%clk
01:13:33]} {[%emt 00:00:06]} 35. Qxe8+ {[%clk 00:45:37]} {[%emt 00:00:04]} Kg7
{[%clk 01:13:55]} {[%emt 00:00:08]} 1/2-1/2

[Event "Masters Tournament (MTO)"]
[Site "Biel, Switzerland"]
[Date "2026.07.20"]
[Round "7.11"]
[White "Dai, Wenzhi"]
[Black "Lu, Miaoyi"]
[Result "1/2-1/2"]
[TimeControl "100+30+30sec/move"]
[WhiteTitle "-"]
[BlackTitle "-"]
[WhiteFideId "8608369"]
[BlackFideId "8618020"]
[WhiteElo "2126"]
[BlackElo "2392"]

1. e4 {[%clk 01:40:58]} e6 {[%clk 01:37:49]} {[%emt 00:03:12]} 2. d4 {[%clk
01:41:15]} {[%emt 00:00:12]} d5 {[%clk 01:38:12]} {[%emt 00:00:08]} 3. Nc3
{[%clk 01:41:36]} {[%emt 00:00:08]} Nf6 {[%clk 01:38:38]} {[%emt 00:00:04]} 4.
Bg5 {[%clk 01:41:57]} {[%emt 00:00:09]} dxe4 {[%clk 01:38:07]} {[%emt
00:01:02]} 5. Nxe4 {[%clk 01:42:20]} {[%emt 00:00:07]} Nbd7 {[%clk 01:38:27]}
{[%emt 00:00:10]} 6. Nf3 {[%clk 01:42:33]} {[%emt 00:00:16]} Be7 {[%clk
01:38:24]} {[%emt 00:00:33]} 7. Bxf6 {[%clk 01:42:20]} {[%emt 00:00:43]} Nxf6
{[%clk 01:38:46]} {[%emt 00:00:08]} 8. Bd3 {[%clk 01:41:46]} {[%emt 00:01:05]}
Nxe4 {[%clk 01:39:08]} {[%emt 00:00:08]} 9. Bxe4 {[%clk 01:42:09]} {[%emt
00:00:06]} c5 {[%clk 01:39:33]} {[%emt 00:00:05]} 10. c3 {[%clk 01:38:09]}
{[%emt 00:04:31]} cxd4 {[%clk 01:39:23]} {[%emt 00:00:40]} 11. Qxd4 {[%clk
01:37:45]} {[%emt 00:00:54]} O-O {[%clk 01:29:58]} {[%emt 00:09:55]} 12. O-O
{[%clk 01:36:19]} {[%emt 00:01:55]} Qc7 {[%clk 01:15:03]} {[%emt 00:15:26]} 13.
Rad1 {[%clk 01:28:32]} {[%emt 00:08:16]} Rd8 {[%clk 01:01:18]} {[%emt
00:14:15]} 14. Qe5 {[%clk 01:21:59]} {[%emt 00:07:04]} Qb6 {[%clk 01:01:34]}
{[%emt 00:00:14]} 15. Rxd8+ {[%clk 01:21:04]} Qxd8 {[%clk 01:00:59]} {[%emt
00:02:30]} 16. Qd4 {[%clk 01:16:46]} {[%emt 00:04:47]} Qc7 {[%clk 00:44:52]}
{[%emt 00:16:37]} 17. Rd1 {[%clk 01:13:42]} {[%emt 00:03:34]} Bf6 {[%clk
00:45:09]} {[%emt 00:00:13]} 18. Qd6 {[%clk 00:58:17]} {[%emt 00:15:54]} Qxd6
{[%clk 00:45:27]} {[%emt 00:00:13]} 19. Rxd6 {[%clk 00:58:42]} {[%emt
00:00:06]} Kf8 {[%clk 00:32:13]} {[%emt 00:13:44]} 20. h4 {[%clk 00:56:24]}
{[%emt 00:02:47]} g6 {[%clk 00:29:21]} {[%emt 00:03:22]} 21. g4 {[%clk
00:53:17]} {[%emt 00:03:37]} Be7 {[%clk 00:26:54]} {[%emt 00:02:57]} 22. Rd2
{[%clk 00:52:25]} {[%emt 00:01:21]} f5 {[%clk 00:23:18]} {[%emt 00:04:08]} 23.
gxf5 {[%clk 00:51:04]} {[%emt 00:01:51]} gxf5 {[%clk 00:23:46]} {[%emt
00:00:01]} 24. Bc2 {[%clk 00:50:07]} {[%emt 00:01:27]} Bf6 {[%clk 00:18:32]}
{[%emt 00:05:45]} 25. Bb3 {[%clk 00:49:32]} {[%emt 00:01:04]} Ke7 {[%clk
00:14:29]} {[%emt 00:04:33]} 26. Ng5 {[%clk 00:25:51]} {[%emt 00:24:12]} Bd7
{[%clk 00:14:21]} {[%emt 00:00:38]} 27. Nxe6 {[%clk 00:24:20]} {[%emt
00:02:01]} Rg8+ {[%clk 00:13:42]} {[%emt 00:01:09]} 28. Ng5 {[%clk 00:19:09]}
{[%emt 00:05:40]} Rg6 {[%clk 00:13:14]} {[%emt 00:00:58]} 29. Re2+ {[%clk
00:15:38]} {[%emt 00:04:02]} Kd8 {[%clk 00:11:05]} {[%emt 00:02:34]} 30. Kh2
{[%clk 00:14:14]} {[%emt 00:01:57]} Bxg5 {[%clk 00:11:09]} {[%emt 00:00:27]} 31.
hxg5 {[%clk 00:14:39]} {[%emt 00:00:05]} Rxg5 {[%clk 00:11:31]} {[%emt
00:00:08]} 32. f4 {[%clk 00:14:35]} {[%emt 00:00:33]} Rg4 {[%clk 00:07:06]}
{[%emt 00:04:56]} 33. Rf2 {[%clk 00:14:47]} {[%emt 00:00:18]} h5 {[%clk
00:01:46]} {[%emt 00:05:51]} 34. Bd1 {[%clk 00:15:01]} {[%emt 00:00:15]} Rg6
{[%clk 00:00:48]} {[%emt 00:01:27]} 35. Kh3 {[%clk 00:13:31]} {[%emt 00:02:01]}
Rg1 {[%clk 00:00:35]} {[%emt 00:00:44]} 36. Bxh5 {[%clk 00:12:57]} {[%emt
00:01:03]} Rh1+ {[%clk 00:00:54]} {[%emt 00:00:11]} 37. Rh2 {[%clk 00:13:22]}
{[%emt 00:00:04]} Ra1 {[%clk 00:00:38]} {[%emt 00:00:47]} 38. Bf3 {[%clk
00:11:46]} {[%emt 00:02:06]} Rxa2 {[%clk 00:00:35]} {[%emt 00:00:34]} 39. Bxb7
{[%clk 00:12:09]} {[%emt 00:00:06]} Be6 {[%clk 00:00:38]} {[%emt 00:00:28]} 40.
Kh4 {[%clk 00:11:38]} {[%emt 00:01:00]} a5 {[%clk 00:00:44]} {[%emt 00:00:25]}
41. Kg5 {[%clk 00:10:47]} {[%emt 00:01:21]} Ke7 {[%clk 00:00:36]} {[%emt
00:00:37]} 42. Kg6 {[%clk 00:04:35]} {[%emt 00:06:42]} Ra1 {[%clk 00:24:30]}
{[%emt 00:06:37]} 43. Rh7+ {[%clk 00:34:13]} {[%emt 00:00:51]} Kd6 {[%clk
00:24:46]} {[%emt 00:00:14]} 44. Kf6 {[%clk 00:34:20]} {[%emt 00:00:23]} Rf1
{[%clk 00:19:07]} {[%emt 00:06:09]} 45. Rh2 {[%clk 00:12:26]} {[%emt 00:22:24]}
Rxf4 {[%clk 00:18:39]} {[%emt 00:00:58]} 46. Rd2+ {[%clk 00:12:51]} {[%emt
00:00:05]} Kc7 {[%clk 00:19:05]} {[%emt 00:00:04]} 47. Kxe6 {[%clk 00:12:28]}
{[%emt 00:00:53]} Kxb7 {[%clk 00:19:32]} {[%emt 00:00:04]} 48. Rd5 {[%clk
00:12:26]} {[%emt 00:00:32]} Rf2 {[%clk 00:18:21]} {[%emt 00:01:40]} 49. Rxf5
{[%clk 00:12:05]} {[%emt 00:00:51]} Rxb2 {[%clk 00:18:43]} {[%emt 00:00:08]} 50.
Rxa5 {[%clk 00:12:32]} {[%emt 00:00:04]} Kc6 {[%clk 00:18:51]} {[%emt
00:00:21]} 51. Ke5 {[%clk 00:12:19]} {[%emt 00:00:43]} Rh2 {[%clk 00:19:07]}
{[%emt 00:00:14]} 52. Kd4 {[%clk 00:12:23]} {[%emt 00:00:26]} Rh4+ {[%clk
00:19:32]} {[%emt 00:00:05]} 53. Kd3 {[%clk 00:12:48]} {[%emt 00:00:05]} Kd6
{[%clk 00:19:47]} {[%emt 00:00:15]} 54. Rg5 {[%clk 00:13:08]} {[%emt 00:00:10]}
Kc6 {[%clk 00:20:05]} {[%emt 00:00:12]} 55. c4 {[%clk 00:13:31]} {[%emt
00:00:07]} Rh1 {[%clk 00:20:20]} {[%emt 00:00:14]} 56. Kd4 {[%clk 00:13:35]}
{[%emt 00:00:25]} 1/2-1/2